Departmental Area,Entity,Payment Date,Expense Type,Expense Area,Supplier Name,Payment Reference,Invoice Distribution Amount,Description,Suplier Type,Expenditure Type
UK Statistics Authority,Office for National Statistics,01/07/2020,Exp - Purchase Of Goods/Services - IT Contractual Services,Digital Publishing,E Synergy Solutions,184181,"10,800.00",Information Management Services,SME,Programme Expenditure
UK Statistics Authority,Office for National Statistics,01/07/2020,Exp - Purchase Of Goods/Services - IT Contractual Services,DST Reapportioning,E Synergy Solutions,184181,"139,857.00",Information Management Services,SME,Programme Expenditure
UK Statistics Authority,Office for National Statistics,01/07/2020,Exp - Purchase Of Goods/Services - IT Contractual Services,Tech Delivery Legacy Sp,E Synergy Solutions,184181,"9,900.00",Information Management Services,SME,Programme Expenditure
UK Statistics Authority,Office for National Statistics,01/07/2020,Exp - Purchase Of Goods/Services - IT Contractual Services,Data Science Campus,E Synergy Solutions,184181,"7,200.00",Information Management Services,SME,Programme Expenditure
UK Statistics Authority,Office for National Statistics,01/07/2020,Exp - Permanent UK Staff - PRP Voucher Payments,ONS Corporate Funds,Park Retail Ltd,184182,"18,997.49",Performance Reward Vouchers,Large,Programme Expenditure
UK Statistics Authority,Office for National Statistics,01/07/2020,Exp - Purchase Of Goods/Services - Incentive Payments,Survey Management,Park Retail Ltd,184182,"-11,628.07",Survey Response Incentive Vouchers,Large,Programme Expenditure
UK Statistics Authority,Office for National Statistics,01/07/2020,Exp - Purchase Of Goods/Services - Incentive Payments,Survey Management,Park Retail Ltd,184182,"23,600.00",Survey Response Incentive Vouchers,Large,Programme Expenditure
UK Statistics Authority,Office for National Statistics,01/07/2020,Exp - Purchase Of Goods/Services - Incentive Payments,Survey Management,Park Retail Ltd,184182,"15,900.00",Survey Response Incentive Vouchers,Large,Programme Expenditure
UK Statistics Authority,Office for National Statistics,01/07/2020,Exp - Purchase Of Goods/Services - Incentive Payments,Survey Management,Park Retail Ltd,184182,"15,860.00",Survey Response Incentive Vouchers,Large,Programme Expenditure
UK Statistics Authority,Office for National Statistics,01/07/2020,Capital Major Works >25K,Property Services,Vinci Construction UK Limited,184183,"62,714.47",Facilities Mangement Services,Large,Programme Expenditure
UK Statistics Authority,Office for National Statistics,01/07/2020,FM Contract Payments,FM Payments,Vinci Construction UK Limited,184183,"289,944.37",Facilities Mangement Services,Large,Programme Expenditure
UK Statistics Authority,Office for National Statistics,01/07/2020,Other Goods And Services,Census & Soc Methodology Dd,University of Southampton,184191,"30,059.28",Statistical Services,SME,Programme Expenditure
UK Statistics Authority,Office for National Statistics,01/07/2020,Other Goods And Services,Census & Soc Methodology Dd,University of Southampton,184191,360,Statistical Services,SME,Programme Expenditure
UK Statistics Authority,Office for National Statistics,01/07/2020,Postage,Respondent Relations,DHL Parcel Ltd,184195,"57,038.54",Courier Services,Large,Programme Expenditure
UK Statistics Authority,Office for National Statistics,01/07/2020,Postage,Survey Processing Centre,DHL Parcel Ltd,184195,"7,403.30",Courier Services,Large,Programme Expenditure
UK Statistics Authority,Office for National Statistics,01/07/2020,Other Professional Services,Data As A Service,Hmrc,184197,"526,742.70",Data Acquisition,Large,Programme Expenditure
UK Statistics Authority,Office for National Statistics,01/07/2020,Other Goods And Services,Data As A Service,Hmrc,184197,"3,562.79",Data Acquisition,Large,Programme Expenditure
UK Statistics Authority,Office for National Statistics,01/07/2020,Exp - Purchase Of Goods/Services - Contractors,Senior Management,Certes Computing Ltd,184202,"17,677.80",Information Management Services,SME,Programme Expenditure
UK Statistics Authority,Office for National Statistics,01/07/2020,Exp - Purchase Of Goods/Services - Contractors,Senior Management,Certes Computing Ltd,184202,"4,942.34",Information Management Services,SME,Programme Expenditure
UK Statistics Authority,Office for National Statistics,01/07/2020,Exp - Purchase Of Goods/Services - Contractors,Digital Delivery,Certes Computing Ltd,184202,"6,693.06",Information Management Services,SME,Programme Expenditure
UK Statistics Authority,Office for National Statistics,01/07/2020,Exp - Purchase Of Goods/Services - Contractors,Testing,La International,184203,"13,559.16",Information Management Services,SME,Programme Expenditure
UK Statistics Authority,Office for National Statistics,01/07/2020,Exp - Purchase Of Goods/Services - Contractors,Testing,La International,184203,"5,414.48",Information Management Services,SME,Programme Expenditure
UK Statistics Authority,Office for National Statistics,01/07/2020,Exp - Purchase Of Goods/Services - Contractors,Data Architecture,La International,184203,"3,171.80",Information Management Services,SME,Programme Expenditure
UK Statistics Authority,Office for National Statistics,01/07/2020,Exp - Purchase Of Goods/Services - Contractors,Data Architecture,La International,184203,"7,112.52",Information Management Services,SME,Programme Expenditure
UK Statistics Authority,Office for National Statistics,01/07/2020,Exp - Purchase Of Goods/Services - Contractors,Data Architecture,La International,184203,"3,588.30",Information Management Services,SME,Programme Expenditure
UK Statistics Authority,Office for National Statistics,01/07/2020,Exp - Purchase Of Goods/Services - Contractors,Tech Delivery SRS,La International,184203,"3,588.30",Information Management Services,SME,Programme Expenditure
UK Statistics Authority,Office for National Statistics,01/07/2020,Exp - Purchase Of Goods/Services - Contractors,Tech Delivery Legacy Sp,La International,184203,"10,406.08",Information Management Services,SME,Programme Expenditure
UK Statistics Authority,Office for National Statistics,01/07/2020,Exp - Purchase Of Goods/Services - Contractors,IT Applications,La International,184203,"17,313.92",Information Management Services,SME,Programme Expenditure
UK Statistics Authority,Office for National Statistics,01/07/2020,Exp - Purchase Of Goods/Services - Contractors,Digital Delivery,La International,184203,"8,970.84",Information Management Services,SME,Programme Expenditure
UK Statistics Authority,Office for National Statistics,01/07/2020,Exp - Purchase Of Goods/Services - Contractors,Digital Delivery,La International,184203,"31,935.88",Information Management Services,SME,Programme Expenditure
UK Statistics Authority,Office for National Statistics,01/07/2020,Exp - Purchase Of Goods/Services - Contractors,Social Survey Transformation Titchfield,La International,184203,"2,563.10",Information Management Services,SME,Programme Expenditure
UK Statistics Authority,Office for National Statistics,01/07/2020,End User Software And Hardware,IT Operations,Bytes Software Services Ltd,184207,"43,274.15",Software Licenses,Large,Programme Expenditure
UK Statistics Authority,Office for National Statistics,01/07/2020,Purchase of Goods and Services - Training,Data Science Campus,The Alan Turing Institute,184215,"51,764.50",Training and Educational Services,SME,Programme Expenditure
UK Statistics Authority,Office for National Statistics,01/07/2020,Surveys,Business Outputs And Developments,Iff Research,184221,"124,562.82",Statistical Services,Large,Programme Expenditure
UK Statistics Authority,Office for National Statistics,01/07/2020,Hosting,IT Operations,Amazon Web Services Inc,184226,"80,607.01",Information Management Services,Large,Programme Expenditure
UK Statistics Authority,Office for National Statistics,01/07/2020,Hosting,Data Science Campus,Amazon Web Services Inc,184226,18.79,Information Management Services,Large,Programme Expenditure
UK Statistics Authority,Office for National Statistics,01/07/2020,EXP - PURCHASE OF GOODS/SERVICES -  NON IT CONTRACTUAL PAYMENTS,Covid Infection Survey,HH Associates Ltd,184227,"73,046.53",Print and Post Services,SME,Programme Expenditure
UK Statistics Authority,Office for National Statistics,01/07/2020,Surveys,Prices Division,Kantar UK Ltd,184228,"206,198.17",Statistical Services,Large,Programme Expenditure
UK Statistics Authority,Office for National Statistics,01/07/2020,Surveys,Prices Division,Kantar UK Ltd,184228,"1,505.83",Statistical Services,Large,Programme Expenditure
UK Statistics Authority,Office for National Statistics,01/07/2020,Telecoms,Tech Delivery Next Gen IT And Infrastructure,Freedom Communications (UK) Ltd,184231,"94,505.42",Information Management Services,Large,Programme Expenditure
UK Statistics Authority,Office for National Statistics,01/07/2020,Exp - Short-Term Contract & Agency Staff - Full Cost,Stakeholder Engagement And Comms,Parity Resources Limited,184237,"4,657.04",Information Management Services,Large,Programme Expenditure
UK Statistics Authority,Office for National Statistics,01/07/2020,Exp - Purchase Of Goods/Services - Contractors,Programme Delivery,Parity Resources Limited,184237,"1,409.76",Information Management Services,Large,Programme Expenditure
UK Statistics Authority,Office for National Statistics,01/07/2020,Exp - Purchase Of Goods/Services - Contractors,Programme Delivery,Parity Resources Limited,184237,"14,097.60",Information Management Services,Large,Programme Expenditure
UK Statistics Authority,Office for National Statistics,01/07/2020,Exp - Short-Term Contract & Agency Staff - Full Cost,Recruitment ,Parity Resources Limited,184237,"1,021.64",Information Management Services,Large,Programme Expenditure
UK Statistics Authority,Office for National Statistics,01/07/2020,Exp - Purchase Of Goods/Services - Contractors,Security Advisory,Parity Resources Limited,184237,"30,758.40",Information Management Services,Large,Programme Expenditure
UK Statistics Authority,Office for National Statistics,01/07/2020,Exp - Short-Term Contract & Agency Staff - Full Cost,Digital Delivery,Parity Resources Limited,184237,"1,571.76",Information Management Services,Large,Programme Expenditure
UK Statistics Authority,Office for National Statistics,01/07/2020,Exp - Purchase Of Goods/Services - Contractors,Digital Delivery,Parity Resources Limited,184237,"5,446.80",Information Management Services,Large,Programme Expenditure
UK Statistics Authority,Office for National Statistics,01/07/2020,Exp - Purchase Of Goods/Services - IT Contractual Services,Tech Delivery Next Gen IT And Infrastructure,Diegesis Limited,184238,"56,130.00",Information Management Services,Large,Programme Expenditure
UK Statistics Authority,Office for National Statistics,01/07/2020,Exp - Purchase Of Goods/Services - Contractor Travel,Tech Delivery Next Gen IT And Infrastructure,Diegesis Limited,184238,977.39,Information Management Services,Large,Programme Expenditure
UK Statistics Authority,Office for National Statistics,01/07/2020,Other Goods And Services,Beyond 2021 Research And Design,The Sensible Code Company,184239,"87,840.00",Statistical Services,SME,Programme Expenditure
UK Statistics Authority,Office for National Statistics,02/07/2020,Exp - Purchase Of Goods/Services - IT Contractual Services,International Trade And Transactions,Mango Solutions,184372,"13,872.00",Information Management Services,SME,Programme Expenditure
UK Statistics Authority,Office for National Statistics,02/07/2020,Exp - Purchase Of Goods/Services - IT Contractual Services,International Trade And Transactions,Mango Solutions,184372,"42,432.00",Information Management Services,SME,Programme Expenditure
UK Statistics Authority,Office for National Statistics,02/07/2020,Exp - Purchase Of Goods And Services Consultants,Digital Delivery,Xma Limited,184377,"1,406.26",Leasing of Devices,Large,Programme Expenditure
UK Statistics Authority,Office for National Statistics,02/07/2020,Postage,Digital Delivery,Xma Limited,184377,"26,707.56",Leasing of Devices,Large,Programme Expenditure
UK Statistics Authority,Office for National Statistics,02/07/2020,Exp - Purchase Of Goods/Services - IT Contractual Services,Digital Delivery,Xma Limited,184377,"99,439.96",Leasing of Devices,Large,Programme Expenditure
UK Statistics Authority,Office for National Statistics,02/07/2020,End User Software And Hardware,Digital Delivery,Xma Limited,184377,552,Leasing of Devices,Large,Programme Expenditure
UK Statistics Authority,Office for National Statistics,02/07/2020,Exp - Purchase Of Goods And Services Consultants,Productivity Research And Professional Development,Niesr,184378,"296,980.80",Statistical Services,SME,Programme Expenditure
UK Statistics Authority,Office for National Statistics,02/07/2020,Exp - Purchase Of Goods/Services - Contractors,Programme Delivery,Certes Computing Ltd,184379,"10,888.09",Information Management Services,SME,Programme Expenditure
UK Statistics Authority,Office for National Statistics,02/07/2020,Exp - Purchase Of Goods/Services - Contractors,Programme Delivery,Certes Computing Ltd,184379,"9,287.26",Information Management Services,SME,Programme Expenditure
UK Statistics Authority,Office for National Statistics,02/07/2020,Exp - Purchase Of Goods/Services - Contractors,Strategy And Architecture,Certes Computing Ltd,184379,"19,150.26",Information Management Services,SME,Programme Expenditure
UK Statistics Authority,Office for National Statistics,02/07/2020,Exp - Purchase Of Goods/Services - Contractors,Digital Delivery,Certes Computing Ltd,184379,"10,078.99",Information Management Services,SME,Programme Expenditure
UK Statistics Authority,Office for National Statistics,02/07/2020,Surveys,International Trade And Transactions,VesselsValue ltd  ,184385,"60,100.00",Data Acquisition,SME,Programme Expenditure
UK Statistics Authority,Office for National Statistics,02/07/2020,Exp - Purchase Of Goods/Services - IT Contractual Services,Tech Delivery Next Gen IT And Infrastructure,Diegesis Limited,184388,"48,945.00",Information Management Services,Large,Programme Expenditure
UK Statistics Authority,Office for National Statistics,02/07/2020,Exp - Purchase Of Goods/Services - Contractor Travel,Tech Delivery Next Gen IT And Infrastructure,Diegesis Limited,184388,"1,088.03",Information Management Services,Large,Programme Expenditure
UK Statistics Authority,Office for National Statistics,02/07/2020,Exp - Purchase Of Goods/Services - Contractors,Data Architecture,SmartSourcing Ltd,184389,"32,543.57",Information Management Services,SME,Programme Expenditure
UK Statistics Authority,Office for National Statistics,03/07/2020,Exp - Purchase Of Goods/Services - IT Contractual Services,Digital Publishing,Swirrl It Ltd,184392,"32,889.60",Information Management Services,SME,Programme Expenditure
UK Statistics Authority,Office for National Statistics,03/07/2020,Exp - Purchase Of Goods/Services - Incentive Payments,Interviewer Support,P & Mm Ltd,184393,"151,625.20",Survey Response Incentive Vouchers,Large,Programme Expenditure
UK Statistics Authority,Office for National Statistics,03/07/2020,Exp - Purchase Of Goods/Services - IT Contractual Services,Strategy And Architecture,Medley Business Solutions Ltd,184399,"26,136.00",Information Management Services,Large,Programme Expenditure
UK Statistics Authority,Office for National Statistics,03/07/2020,Exp - Purchase Of Goods/Services - IT Contractual Services,Digital Delivery,Mitie Security,184402,"90,000.00",Information Management Services,Large,Programme Expenditure
UK Statistics Authority,Office for National Statistics,03/07/2020,Exp - Purchase Of Goods/Services - Contractors,Data Architecture,Talent International,184407,"25,740.00",Information Management Services,SME,Programme Expenditure
UK Statistics Authority,Office for National Statistics,03/07/2020,Exp - Purchase Of Goods/Services - Contractors,Tech Delivery Next Gen IT And Infrastructure,Talent International,184407,"10,957.25",Information Management Services,SME,Programme Expenditure
UK Statistics Authority,Office for National Statistics,06/07/2020,Telecoms,IT Operations,Crown Hosting Data Centres Limited,184564,860,Information Management Services,SME,Programme Expenditure
UK Statistics Authority,Office for National Statistics,06/07/2020,Hosting,IT Operations,Crown Hosting Data Centres Limited,184564,"87,480.19",Information Management Services,SME,Programme Expenditure
UK Statistics Authority,Office for National Statistics,06/07/2020,Exp - Purchase Of Goods/Services - IT Contractual Services,International Trade And Transactions,Mango Solutions,184565,"17,952.00",Information Management Services,SME,Programme Expenditure
UK Statistics Authority,Office for National Statistics,06/07/2020,Exp - Purchase Of Goods/Services - IT Contractual Services,International Trade And Transactions,Mango Solutions,184565,"48,144.00",Information Management Services,SME,Programme Expenditure
UK Statistics Authority,Office for National Statistics,06/07/2020,Hosting,IT Operations,Equiniti Limited,184569,"98,335.58",Information Management Services,Large,Programme Expenditure
UK Statistics Authority,Office for National Statistics,06/07/2020,Exp - Purchase Of Goods/Services - Contractors,Data Architecture,Certes Computing Ltd,184571,"14,398.56",Information Management Services,SME,Programme Expenditure
UK Statistics Authority,Office for National Statistics,06/07/2020,Exp - Purchase Of Goods/Services - Contractors,Tech Delivery Data As A Platform,Certes Computing Ltd,184571,"13,450.56",Information Management Services,SME,Programme Expenditure
UK Statistics Authority,Office for National Statistics,06/07/2020,Exp - Purchase Of Goods/Services - Contractors,Digital Delivery,Certes Computing Ltd,184571,"14,347.20",Information Management Services,SME,Programme Expenditure
UK Statistics Authority,Office for National Statistics,06/07/2020,Exp - Short-Term Contract & Agency Staff - Full Cost,Data Architecture,Talent International,184577,542.15,Information Management Services,SME,Programme Expenditure
UK Statistics Authority,Office for National Statistics,06/07/2020,Exp - Purchase Of Goods/Services - Contractors,Data Architecture,Talent International,184577,"16,320.00",Information Management Services,SME,Programme Expenditure
UK Statistics Authority,Office for National Statistics,06/07/2020,Exp - Purchase Of Goods/Services - Contractors,Tech Delivery Data As A Platform,Talent International,184577,"14,399.76",Information Management Services,SME,Programme Expenditure
UK Statistics Authority,Office for National Statistics,07/07/2020,Exp - Purchase Of Goods/Services - IT Contractual Services,IT Applications,Diegesis Limited,184587,"162,345.00",Information Management Services,Large,Programme Expenditure
UK Statistics Authority,Office for National Statistics,07/07/2020,Exp - Purchase Of Goods/Services - Contractor Travel,IT Applications,Diegesis Limited,184587,"3,642.50",Information Management Services,Large,Programme Expenditure
UK Statistics Authority,Office for National Statistics,07/07/2020,Accommodation & Building Management,Interview Management IPS,Heathrow Airport,184594,"30,809.80",Rental Charges,Large,Programme Expenditure
UK Statistics Authority,Office for National Statistics,07/07/2020,Exp - Purchase Of Goods/Services - Contractors,Testing,La International,184598,"3,364.02",Information Management Services,SME,Programme Expenditure
UK Statistics Authority,Office for National Statistics,07/07/2020,Exp - Purchase Of Goods/Services - Contractors,Testing,La International,184598,"3,364.02",Information Management Services,SME,Programme Expenditure
UK Statistics Authority,Office for National Statistics,07/07/2020,Exp - Purchase Of Goods/Services - Contractors,Data Architecture,La International,184598,"10,316.40",Information Management Services,SME,Programme Expenditure
UK Statistics Authority,Office for National Statistics,07/07/2020,Exp - Purchase Of Goods/Services - Contractors,Data Architecture,La International,184598,"3,588.30",Information Management Services,SME,Programme Expenditure
UK Statistics Authority,Office for National Statistics,07/07/2020,Exp - Purchase Of Goods/Services - Contractors,IT Applications,La International,184598,"5,766.96",Information Management Services,SME,Programme Expenditure
UK Statistics Authority,Office for National Statistics,07/07/2020,Exp - Purchase Of Goods/Services - Contractors,Social Survey Transformation Titchfield,La International,184598,640.78,Information Management Services,SME,Programme Expenditure
UK Statistics Authority,Office for National Statistics,07/07/2020,Exp - Purchase Of Goods And Services Consultants,Consultancy Management,Deloitte,184599,"91,054.08",Consultancy,Large,Programme Expenditure
UK Statistics Authority,Office for National Statistics,08/07/2020,Specialist User Software And Hardware,Digital Delivery,Xma Limited,184615,"1,910,463.00",Leasing of Devices,Large,Programme Expenditure
UK Statistics Authority,Office for National Statistics,08/07/2020,Stationery,Lodgecard,Royal Bank of Scotland,184629,"1,715.75",Multiple Procurement Card Purchases  - Stationery ,Large,Programme Expenditure
UK Statistics Authority,Office for National Statistics,08/07/2020,Other Goods And Services,GPC,Royal Bank of Scotland,184629,"37,819.92",Multiple Procurement Card Purchases - other goods/services  ,Large,Programme Expenditure
UK Statistics Authority,Office for National Statistics,08/07/2020,Exp - Purchase Of Goods And Services Consultants,Consultancy Management,Bloom Procurement Services Ltd,184632,"142,788.32",Consultancy,Large,Programme Expenditure
UK Statistics Authority,Office for National Statistics,08/07/2020,Exp - Purchase Of Goods/Services - IT Contractual Services,DST Reapportioning,Methods Business & Digital Technology Ltd,184637,"58,470.00",Information Management Services,Large,Programme Expenditure
UK Statistics Authority,Office for National Statistics,08/07/2020,Marketing & Media,Survey Processing Centre,Xerox UK Limited,184639,"20,820.89",Reprographic Support and Maintenance,Large,Programme Expenditure
UK Statistics Authority,Office for National Statistics,08/07/2020,IT Management And Change,Survey Processing Centre,Xerox UK Limited,184639,"5,561.64",Reprographic Support and Maintenance,Large,Programme Expenditure
UK Statistics Authority,Office for National Statistics,08/07/2020,EXP - PURCHASE OF GOODS/SERVICES -  NON IT CONTRACTUAL PAYMENTS,Data Collection Service,Good Things Foundation,184645,"130,040.00",Census Assisted Digital Services,SME,Programme Expenditure
UK Statistics Authority,Office for National Statistics,10/07/2020,"ICT Outsourcing, Maintenance And Support",IT Operations,Phoenix Software Ltd,184660,"57,721.49",Software Licenses,SME,Programme Expenditure
UK Statistics Authority,Office for National Statistics,10/07/2020,Exp - Short-Term Contract & Agency Staff - Full Cost,Senior Management Team Design,Parity Resources Limited,184661,637.2,Information Management Services,Large,Programme Expenditure
UK Statistics Authority,Office for National Statistics,10/07/2020,Exp - Purchase Of Goods/Services - Contractors,Testing,Parity Resources Limited,184661,"14,400.00",Information Management Services,Large,Programme Expenditure
UK Statistics Authority,Office for National Statistics,10/07/2020,Exp - Purchase Of Goods/Services - Contractors,Commercial Services,Parity Resources Limited,184661,"16,660.80",Information Management Services,Large,Programme Expenditure
UK Statistics Authority,Office for National Statistics,10/07/2020,Exp - Short-Term Contract & Agency Staff - Full Cost,Data Architecture,Parity Resources Limited,184661,"1,356.30",Information Management Services,Large,Programme Expenditure
UK Statistics Authority,Office for National Statistics,10/07/2020,Exp - Purchase Of Goods/Services - Contractors,Digital Delivery,Parity Resources Limited,184661,"27,990.14",Information Management Services,Large,Programme Expenditure
UK Statistics Authority,Office for National Statistics,10/07/2020,Exp - Purchase Of Goods/Services - Contractors,Digital Delivery,Parity Resources Limited,184661,"13,636.22",Information Management Services,Large,Programme Expenditure
UK Statistics Authority,Office for National Statistics,10/07/2020,Exp - Purchase Of Goods/Services - Contractors,Digital Delivery,Parity Resources Limited,184661,"8,714.88",Information Management Services,Large,Programme Expenditure
UK Statistics Authority,Office for National Statistics,10/07/2020,Exp - Purchase Of Goods/Services - IT Contractual Services,Digital Delivery,Parity Resources Limited,184661,"11,534.40",Information Management Services,Large,Programme Expenditure
UK Statistics Authority,Office for National Statistics,10/07/2020,Exp - Purchase Of Goods/Services - Contractors,Data Science Campus,Parity Resources Limited,184661,"12,009.60",Information Management Services,Large,Programme Expenditure
UK Statistics Authority,Office for National Statistics,10/07/2020,Exp - Purchase Of Goods/Services - Contractors,Business Architecture,LA FOSSE ASSOCIATES LIMITED,184670,"28,650.00",Information Management Services,Large,Programme Expenditure
UK Statistics Authority,Office for National Statistics,10/07/2020,Exp - Purchase Of Goods/Services - Contractors,Business Architecture,LA FOSSE ASSOCIATES LIMITED,184670,"135,735.00",Information Management Services,Large,Programme Expenditure
UK Statistics Authority,Office for National Statistics,10/07/2020,Exp - Purchase Of Goods/Services - Contractors,Business Architecture,LA FOSSE ASSOCIATES LIMITED,184670,"27,600.00",Information Management Services,Large,Programme Expenditure
UK Statistics Authority,Office for National Statistics,10/07/2020,Exp - Purchase Of Goods/Services - Contractors,Census CCS Data Collection,LA FOSSE ASSOCIATES LIMITED,184670,"13,800.00",Information Management Services,Large,Programme Expenditure
UK Statistics Authority,Office for National Statistics,10/07/2020,Exp - Purchase Of Goods/Services - Contractors,Programme Delivery,LA FOSSE ASSOCIATES LIMITED,184670,"3,600.00",Information Management Services,Large,Programme Expenditure
UK Statistics Authority,Office for National Statistics,10/07/2020,Exp - Purchase Of Goods/Services - Contractors,Portfolio Delivery,LA FOSSE ASSOCIATES LIMITED,184670,"10,350.00",Information Management Services,Large,Programme Expenditure
UK Statistics Authority,Office for National Statistics,10/07/2020,Exp - Purchase Of Goods/Services - Contractors,Tech Delivery Legacy Sp,LA FOSSE ASSOCIATES LIMITED,184670,"14,400.00",Information Management Services,Large,Programme Expenditure
UK Statistics Authority,Office for National Statistics,13/07/2020,Surveys,Social Surveys Division,Natcen Social Research,184917,"39,844.46",Statistical Services,Large,Programme Expenditure
UK Statistics Authority,Office for National Statistics,13/07/2020,Surveys,Business Outputs And Developments,Iff Research,184925,"61,671.60",Statistical Services,Large,Programme Expenditure
UK Statistics Authority,Office for National Statistics,13/07/2020,Hosting,IT Operations,Amazon Web Services Inc,184927,"77,364.64",Information Management Services,Large,Programme Expenditure
UK Statistics Authority,Office for National Statistics,13/07/2020,Exp - Purchase Of Goods/Services - IT Contractual Services,Finance,Accenture (UK) Limited,184928,"53,100.00",Consultancy,SME,Programme Expenditure
UK Statistics Authority,Office for National Statistics,14/07/2020,Exp - Purchase Of Goods/Services - IT Contractual Services,Tech Delivery Legacy Sp,Ibm United Kingdom Ltd,184939,"43,626.41",Information Management Services,Large,Programme Expenditure
UK Statistics Authority,Office for National Statistics,14/07/2020,Exp - Purchase Of Goods And Services Consultants,Productivity Research And Professional Development,Niesr,184942,"26,870.29",Statistical Services,SME,Programme Expenditure
UK Statistics Authority,Office for National Statistics,14/07/2020,Capital Major Works >25K,Property Titchfield,Paramount Office Interiors Ltd,184943,"9,583.26",Buildings Maintenance,SME,Programme Expenditure
UK Statistics Authority,Office for National Statistics,14/07/2020,Major Works Over 25K,Property Titchfield,Paramount Office Interiors Ltd,184943,"20,364.43",Buildings Maintenance,SME,Programme Expenditure
UK Statistics Authority,Office for National Statistics,14/07/2020,Exp - Purchase Of Goods/Services - Contractors,Business Architecture,Parity Resources Limited,184947,"8,971.20",Information Management Services,Large,Programme Expenditure
UK Statistics Authority,Office for National Statistics,14/07/2020,Exp - Purchase Of Goods/Services - Contractors,Testing,Parity Resources Limited,184947,"13,264.56",Information Management Services,Large,Programme Expenditure
UK Statistics Authority,Office for National Statistics,14/07/2020,Exp - Purchase Of Goods/Services - Contractors,Operations,Parity Resources Limited,184947,"9,424.80",Information Management Services,Large,Programme Expenditure
UK Statistics Authority,Office for National Statistics,14/07/2020,Exp - Purchase Of Goods/Services - Contractors,Programme Delivery,Parity Resources Limited,184947,"12,540.00",Information Management Services,Large,Programme Expenditure
UK Statistics Authority,Office for National Statistics,14/07/2020,Exp - Purchase Of Goods/Services - Contractors,Programme Delivery,Parity Resources Limited,184947,"14,097.60",Information Management Services,Large,Programme Expenditure
UK Statistics Authority,Office for National Statistics,14/07/2020,Exp - Purchase Of Goods/Services - Contractors,Analysis Microdata And Engagement,Parity Resources Limited,184947,"12,600.00",Information Management Services,Large,Programme Expenditure
UK Statistics Authority,Office for National Statistics,14/07/2020,Exp - Purchase Of Goods/Services - Contractors,Researcher Support And Data Access ,Parity Resources Limited,184947,"3,008.22",Information Management Services,Large,Programme Expenditure
UK Statistics Authority,Office for National Statistics,14/07/2020,Exp - Purchase Of Goods/Services - Contractors,Commercial Services,Parity Resources Limited,184947,"12,175.20",Information Management Services,Large,Programme Expenditure
UK Statistics Authority,Office for National Statistics,14/07/2020,Exp - Purchase Of Goods/Services - Contractors,Security Advisory,Parity Resources Limited,184947,"13,815.65",Information Management Services,Large,Programme Expenditure
UK Statistics Authority,Office for National Statistics,14/07/2020,Exp - Purchase Of Goods/Services - Contractors,IT Applications,Parity Resources Limited,184947,"26,465.16",Information Management Services,Large,Programme Expenditure
UK Statistics Authority,Office for National Statistics,14/07/2020,Exp - Short-Term Contract & Agency Staff - Full Cost,Digital Delivery,Parity Resources Limited,184947,785.88,Information Management Services,Large,Programme Expenditure
UK Statistics Authority,Office for National Statistics,14/07/2020,Exp - Purchase Of Goods/Services - Contractors,Digital Delivery,Parity Resources Limited,184947,"14,353.92",Information Management Services,Large,Programme Expenditure
UK Statistics Authority,Office for National Statistics,14/07/2020,Exp - Short-Term Contract & Agency Staff - Full Cost,Public Sector And Households,Parity Resources Limited,184947,"1,001.22",Information Management Services,Large,Programme Expenditure
UK Statistics Authority,Office for National Statistics,14/07/2020,Exp - Purchase Of Goods/Services - Contractors,Data As A Service,Parity Resources Limited,184947,"14,353.92",Information Management Services,Large,Programme Expenditure
UK Statistics Authority,Office for National Statistics,14/07/2020,Exp - Short-Term Contract & Agency Staff - Full Cost,Social Survey Transformation Newport,Parity Resources Limited,184947,"2,402.93",Information Management Services,Large,Programme Expenditure
UK Statistics Authority,Office for National Statistics,14/07/2020,Exp - Short-Term Contract & Agency Staff - Full Cost,Labour Market,Parity Resources Limited,184947,732.6,Information Management Services,Large,Programme Expenditure
UK Statistics Authority,Office for National Statistics,14/07/2020,Exp - Short-Term Contract & Agency Staff - Full Cost,Labour Market,Parity Resources Limited,184947,732.6,Information Management Services,Large,Programme Expenditure
UK Statistics Authority,Office for National Statistics,15/07/2020,Exp - Purchase Of Goods/Services - IT Contractual Services,Digital Publishing,E Synergy Solutions,184952,"13,200.00",Information Management Services,SME,Programme Expenditure
UK Statistics Authority,Office for National Statistics,15/07/2020,Exp - Purchase Of Goods/Services - IT Contractual Services,DST Reapportioning,E Synergy Solutions,184952,"184,134.00",Information Management Services,SME,Programme Expenditure
UK Statistics Authority,Office for National Statistics,15/07/2020,Exp - Purchase Of Goods/Services - IT Contractual Services,Tech Delivery Legacy Sp,E Synergy Solutions,184952,"11,700.00",Information Management Services,SME,Programme Expenditure
UK Statistics Authority,Office for National Statistics,15/07/2020,Exp - Purchase Of Goods/Services - IT Contractual Services,Data Science Campus,E Synergy Solutions,184952,"8,100.00",Information Management Services,SME,Programme Expenditure
UK Statistics Authority,Office for National Statistics,15/07/2020,Exp - Purchase Of Goods/Services - Incentive Payments,Survey Management,Park Retail Ltd,184954,"38,572.92",Survey Response Incentive Vouchers,Large,Programme Expenditure
UK Statistics Authority,Office for National Statistics,15/07/2020,Exp - Purchase Of Goods/Services - Incentive Payments,Survey Management,Park Retail Ltd,184954,"6,263.68",Survey Response Incentive Vouchers,Large,Programme Expenditure
UK Statistics Authority,Office for National Statistics,15/07/2020,Postage,Survey Processing Centre,DHL Parcel Ltd,184960,"25,636.31",Courier Services,Large,Programme Expenditure
UK Statistics Authority,Office for National Statistics,15/07/2020,Exp - Purchase Of Goods/Services - Other Facilities Costs,Ask Business Services,BaxterStorey,184964,"67,781.36",On Site Facilities,Large,Programme Expenditure
UK Statistics Authority,Office for National Statistics,15/07/2020,Exp - Purchase Of Goods/Services - Contractors,DST Legacy,Malikshaw Interim & Executive,184965,"12,846.48",Information Management Services,SME,Programme Expenditure
UK Statistics Authority,Office for National Statistics,15/07/2020,Exp - Purchase Of Goods/Services - Contractors,Testing,Malikshaw Interim & Executive,184965,"15,120.00",Information Management Services,SME,Programme Expenditure
UK Statistics Authority,Office for National Statistics,15/07/2020,Exp - Purchase Of Goods/Services - Contractors,Testing,Malikshaw Interim & Executive,184965,"48,240.00",Information Management Services,SME,Programme Expenditure
UK Statistics Authority,Office for National Statistics,15/07/2020,Exp - Purchase Of Goods/Services - Contractors,Digital Delivery,Malikshaw Interim & Executive,184965,"13,751.52",Information Management Services,SME,Programme Expenditure
UK Statistics Authority,Office for National Statistics,15/07/2020,Exp - Purchase Of Goods/Services - Contractors,Digital Delivery,Malikshaw Interim & Executive,184965,"15,840.00",Information Management Services,SME,Programme Expenditure
UK Statistics Authority,Office for National Statistics,15/07/2020,Exp - Purchase Of Goods/Services - Contractors,Business Statistics Transformation,Malikshaw Interim & Executive,184965,"9,863.64",Information Management Services,SME,Programme Expenditure
UK Statistics Authority,Office for National Statistics,15/07/2020,Exp - Purchase Of Goods/Services - Contractors,Digital Publishing,Methods Business & Digital Technology Ltd,184969,"44,520.00",Information Management Services,Large,Programme Expenditure
UK Statistics Authority,Office for National Statistics,15/07/2020,Exp - Purchase Of Goods/Services - Contractors,Digital Publishing,Methods Business & Digital Technology Ltd,184969,"12,750.00",Information Management Services,Large,Programme Expenditure
UK Statistics Authority,Office for National Statistics,15/07/2020,Exp - Purchase Of Goods/Services - Contractors,Stakeholder Engagement And Comms,Parity Resources Limited,184973,"3,143.52",Information Management Services,Large,Programme Expenditure
UK Statistics Authority,Office for National Statistics,15/07/2020,Exp - Purchase Of Goods/Services - Contractors,Digital Publishing,Parity Resources Limited,184973,"13,680.00",Information Management Services,Large,Programme Expenditure
UK Statistics Authority,Office for National Statistics,15/07/2020,Exp - Short-Term Contract & Agency Staff - Full Cost,International Trade And Transactions,Parity Resources Limited,184973,"3,665.28",Information Management Services,Large,Programme Expenditure
UK Statistics Authority,Office for National Statistics,15/07/2020,Exp - Purchase Of Goods/Services - Contractors,International Trade And Transactions,Parity Resources Limited,184973,"10,252.80",Information Management Services,Large,Programme Expenditure
UK Statistics Authority,Office for National Statistics,15/07/2020,Exp - Purchase Of Goods/Services - Contractors,International Trade And Transactions,Parity Resources Limited,184973,"13,566.00",Information Management Services,Large,Programme Expenditure
UK Statistics Authority,Office for National Statistics,15/07/2020,Exp - Short-Term Contract & Agency Staff - Full Cost,Productivity Research And Professional Development,Parity Resources Limited,184973,"3,923.70",Information Management Services,Large,Programme Expenditure
UK Statistics Authority,Office for National Statistics,15/07/2020,Exp - Short-Term Contract & Agency Staff - Full Cost,Business Architecture Transformation And Statistical Strategy,Parity Resources Limited,184973,732.6,Information Management Services,Large,Programme Expenditure
UK Statistics Authority,Office for National Statistics,15/07/2020,Exp - Short-Term Contract & Agency Staff - Full Cost,Recruitment ,Parity Resources Limited,184973,"2,880.90",Information Management Services,Large,Programme Expenditure
UK Statistics Authority,Office for National Statistics,15/07/2020,Exp - Short-Term Contract & Agency Staff - Full Cost,Recruitment ,Parity Resources Limited,184973,"2,860.60",Information Management Services,Large,Programme Expenditure
UK Statistics Authority,Office for National Statistics,15/07/2020,Exp - Purchase Of Goods/Services - Contractors,Business Statistics Transformation,Parity Resources Limited,184973,"8,971.20",Information Management Services,Large,Programme Expenditure
UK Statistics Authority,Office for National Statistics,15/07/2020,Exp - Purchase Of Goods/Services - Contractors,Social Survey Transformation Titchfield,Parity Resources Limited,184973,"10,578.60",Information Management Services,Large,Programme Expenditure
UK Statistics Authority,Office for National Statistics,15/07/2020,Exp - Purchase Of Goods/Services - Contractors,Business Architecture,LA FOSSE ASSOCIATES LIMITED,184975,"13,200.00",Information Management Services,Large,Programme Expenditure
UK Statistics Authority,Office for National Statistics,15/07/2020,Exp - Purchase Of Goods/Services - Contractors,Digital Delivery,LA FOSSE ASSOCIATES LIMITED,184975,"13,679.77",Information Management Services,Large,Programme Expenditure
UK Statistics Authority,Office for National Statistics,15/07/2020,Exp - Purchase Of Goods/Services - Contractors,Digital Delivery,LA FOSSE ASSOCIATES LIMITED,184975,"13,680.00",Information Management Services,Large,Programme Expenditure
UK Statistics Authority,Office for National Statistics,16/07/2020,FM Contract Payments,FM Payments,Vinci Construction UK Limited,185118,"88,305.41",Facilities Mangement Services,Large,Programme Expenditure
UK Statistics Authority,Office for National Statistics,17/07/2020,Exp - Short-Term Contract & Agency Staff - Full Cost,Stakeholder Engagement And Comms,Concept Information Technology Ltd T/A Concept Resourcing,185130,"3,152.36",Information Management Services,Large,Programme Expenditure
UK Statistics Authority,Office for National Statistics,17/07/2020,Exp - Purchase Of Goods/Services - Contractors,Testing,Concept Information Technology Ltd T/A Concept Resourcing,185130,"10,588.32",Information Management Services,Large,Programme Expenditure
UK Statistics Authority,Office for National Statistics,17/07/2020,Exp - Short-Term Contract & Agency Staff - Full Cost,Business Change Support,Concept Information Technology Ltd T/A Concept Resourcing,185130,"6,236.03",Information Management Services,Large,Programme Expenditure
UK Statistics Authority,Office for National Statistics,17/07/2020,Exp - Short-Term Contract & Agency Staff - Full Cost,Business Change Support,Concept Information Technology Ltd T/A Concept Resourcing,185130,"4,029.74",Information Management Services,Large,Programme Expenditure
UK Statistics Authority,Office for National Statistics,17/07/2020,Exp - Short-Term Contract & Agency Staff - Full Cost,Business Change Support,Concept Information Technology Ltd T/A Concept Resourcing,185130,"10,315.32",Information Management Services,Large,Programme Expenditure
UK Statistics Authority,Office for National Statistics,17/07/2020,Exp - Short-Term Contract & Agency Staff - Full Cost,Business Change Support,Concept Information Technology Ltd T/A Concept Resourcing,185130,"7,052.05",Information Management Services,Large,Programme Expenditure
UK Statistics Authority,Office for National Statistics,17/07/2020,Exp - Short-Term Contract & Agency Staff - Full Cost,Business Change Support,Concept Information Technology Ltd T/A Concept Resourcing,185130,"3,223.78",Information Management Services,Large,Programme Expenditure
UK Statistics Authority,Office for National Statistics,17/07/2020,Exp - Short-Term Contract & Agency Staff - Full Cost,Business Change Support,Concept Information Technology Ltd T/A Concept Resourcing,185130,"2,790.88",Information Management Services,Large,Programme Expenditure
UK Statistics Authority,Office for National Statistics,17/07/2020,Exp - Short-Term Contract & Agency Staff - Full Cost,Business Change Support,Concept Information Technology Ltd T/A Concept Resourcing,185130,"10,860.88",Information Management Services,Large,Programme Expenditure
UK Statistics Authority,Office for National Statistics,17/07/2020,Exp - Purchase Of Goods/Services - Contractors,Business Change Support,Concept Information Technology Ltd T/A Concept Resourcing,185130,"8,059.48",Information Management Services,Large,Programme Expenditure
UK Statistics Authority,Office for National Statistics,17/07/2020,Exp - Purchase Of Goods/Services - Contractors,Business Change Support,Concept Information Technology Ltd T/A Concept Resourcing,185130,"3,022.31",Information Management Services,Large,Programme Expenditure
UK Statistics Authority,Office for National Statistics,17/07/2020,Exp - Short-Term Contract & Agency Staff - Full Cost,International Trade And Transactions,Concept Information Technology Ltd T/A Concept Resourcing,185130,"3,828.25",Information Management Services,Large,Programme Expenditure
UK Statistics Authority,Office for National Statistics,17/07/2020,Exp - Short-Term Contract & Agency Staff - Full Cost,International Trade And Transactions,Concept Information Technology Ltd T/A Concept Resourcing,185130,"9,622.37",Information Management Services,Large,Programme Expenditure
UK Statistics Authority,Office for National Statistics,17/07/2020,Exp - Short-Term Contract & Agency Staff - Full Cost,International Trade And Transactions,Concept Information Technology Ltd T/A Concept Resourcing,185130,"3,022.31",Information Management Services,Large,Programme Expenditure
UK Statistics Authority,Office for National Statistics,17/07/2020,Exp - Short-Term Contract & Agency Staff - Full Cost,International Trade And Transactions,Concept Information Technology Ltd T/A Concept Resourcing,185130,"6,044.62",Information Management Services,Large,Programme Expenditure
UK Statistics Authority,Office for National Statistics,17/07/2020,Exp - Short-Term Contract & Agency Staff - Full Cost,Productivity Research And Professional Development,Concept Information Technology Ltd T/A Concept Resourcing,185130,"3,148.12",Information Management Services,Large,Programme Expenditure
UK Statistics Authority,Office for National Statistics,17/07/2020,Exp - Short-Term Contract & Agency Staff - Full Cost,Business Architecture Transformation And Statistical Strategy,Concept Information Technology Ltd T/A Concept Resourcing,185130,"3,745.75",Information Management Services,Large,Programme Expenditure
UK Statistics Authority,Office for National Statistics,17/07/2020,Exp - Short-Term Contract & Agency Staff - Full Cost,Business Architecture Transformation And Statistical Strategy,Concept Information Technology Ltd T/A Concept Resourcing,185130,"3,950.23",Information Management Services,Large,Programme Expenditure
UK Statistics Authority,Office for National Statistics,17/07/2020,Exp - Short-Term Contract & Agency Staff - Full Cost,Migration Statistics,Concept Information Technology Ltd T/A Concept Resourcing,185130,"4,029.76",Information Management Services,Large,Programme Expenditure
UK Statistics Authority,Office for National Statistics,17/07/2020,Exp - Short-Term Contract & Agency Staff - Full Cost,Finance,Concept Information Technology Ltd T/A Concept Resourcing,185130,"2,880.19",Information Management Services,Large,Programme Expenditure
UK Statistics Authority,Office for National Statistics,17/07/2020,Exp - Short-Term Contract & Agency Staff - Full Cost,Data Architecture,Concept Information Technology Ltd T/A Concept Resourcing,185130,"13,479.02",Information Management Services,Large,Programme Expenditure
UK Statistics Authority,Office for National Statistics,17/07/2020,Exp - Purchase Of Goods/Services - Contractors,Data Architecture,Concept Information Technology Ltd T/A Concept Resourcing,185130,"14,160.00",Information Management Services,Large,Programme Expenditure
UK Statistics Authority,Office for National Statistics,17/07/2020,Exp - Purchase Of Goods/Services - IT Contractual Services,Tech Delivery Data As A Platform,Concept Information Technology Ltd T/A Concept Resourcing,185130,"9,000.00",Information Management Services,Large,Programme Expenditure
UK Statistics Authority,Office for National Statistics,17/07/2020,Exp - Purchase Of Goods/Services - Contractors,Office Of Chief Data And Information,Concept Information Technology Ltd T/A Concept Resourcing,185130,"11,448.00",Information Management Services,Large,Programme Expenditure
UK Statistics Authority,Office for National Statistics,17/07/2020,Exp - Short-Term Contract & Agency Staff - Full Cost,Business Statistics Transformation,Concept Information Technology Ltd T/A Concept Resourcing,185130,"4,777.42",Information Management Services,Large,Programme Expenditure
UK Statistics Authority,Office for National Statistics,17/07/2020,Exp - Purchase Of Goods/Services - Contractors,Business Statistics Transformation,Concept Information Technology Ltd T/A Concept Resourcing,185130,"4,835.68",Information Management Services,Large,Programme Expenditure
UK Statistics Authority,Office for National Statistics,17/07/2020,Exp - Short-Term Contract & Agency Staff - Full Cost,Interviewer Management TU,Concept Information Technology Ltd T/A Concept Resourcing,185130,"7,451.20",Information Management Services,Large,Programme Expenditure
UK Statistics Authority,Office for National Statistics,17/07/2020,Other Goods And Services,Interviewer Management TU,Concept Information Technology Ltd T/A Concept Resourcing,185130,"2,782.57",Information Management Services,Large,Programme Expenditure
UK Statistics Authority,Office for National Statistics,17/07/2020,Exp - Short-Term Contract & Agency Staff - Full Cost,Prices Division,Concept Information Technology Ltd T/A Concept Resourcing,185130,"3,485.20",Information Management Services,Large,Programme Expenditure
UK Statistics Authority,Office for National Statistics,17/07/2020,Exp - Short-Term Contract & Agency Staff - Full Cost,Prices Division,Concept Information Technology Ltd T/A Concept Resourcing,185130,"7,614.58",Information Management Services,Large,Programme Expenditure
UK Statistics Authority,Office for National Statistics,17/07/2020,"ICT Outsourcing, Maintenance And Support",Researcher Support And Data Access ,Equiniti Limited,185134,"28,588.10",Information Management Services,Large,Programme Expenditure
UK Statistics Authority,Office for National Statistics,17/07/2020,Exp - Short-Term Contract & Agency Staff - Full Cost,Stakeholder Engagement And Comms,La International,185137,"3,314.02",Information Management Services,SME,Programme Expenditure
UK Statistics Authority,Office for National Statistics,17/07/2020,Exp - Purchase Of Goods/Services - Contractors,Testing,La International,185137,"28,688.21",Information Management Services,SME,Programme Expenditure
UK Statistics Authority,Office for National Statistics,17/07/2020,Exp - Purchase Of Goods/Services - Contractors,Testing,La International,185137,"31,910.23",Information Management Services,SME,Programme Expenditure
UK Statistics Authority,Office for National Statistics,17/07/2020,Exp - Purchase Of Goods/Services - Contractors,Programme Delivery,La International,185137,"3,366.90",Information Management Services,SME,Programme Expenditure
UK Statistics Authority,Office for National Statistics,17/07/2020,Exp - Purchase Of Goods/Services - Contractors,Sustainability And Inequalities,La International,185137,"6,313.80",Information Management Services,SME,Programme Expenditure
UK Statistics Authority,Office for National Statistics,17/07/2020,Exp - Purchase Of Goods/Services - Contractors,Business Architecture Transformation And Statistical Strategy,La International,185137,"5,638.77",Information Management Services,SME,Programme Expenditure
UK Statistics Authority,Office for National Statistics,17/07/2020,Exp - Purchase Of Goods/Services - Contractors,Security Advisory,La International,185137,"11,533.86",Information Management Services,SME,Programme Expenditure
UK Statistics Authority,Office for National Statistics,17/07/2020,Exp - Purchase Of Goods/Services - Contractors,Data Architecture,La International,185137,"5,638.76",Information Management Services,SME,Programme Expenditure
UK Statistics Authority,Office for National Statistics,17/07/2020,Exp - Purchase Of Goods/Services - Contractors,Data Architecture,La International,185137,"10,572.66",Information Management Services,SME,Programme Expenditure
UK Statistics Authority,Office for National Statistics,17/07/2020,Exp - Purchase Of Goods/Services - Contractors,Data Architecture,La International,185137,"18,646.38",Information Management Services,SME,Programme Expenditure
UK Statistics Authority,Office for National Statistics,17/07/2020,Exp - Purchase Of Goods/Services - Contractors,Data Architecture,La International,185137,"15,378.48",Information Management Services,SME,Programme Expenditure
UK Statistics Authority,Office for National Statistics,17/07/2020,Exp - Purchase Of Goods/Services - Contractors,Tech Delivery SRS,La International,185137,"7,176.60",Information Management Services,SME,Programme Expenditure
UK Statistics Authority,Office for National Statistics,17/07/2020,Exp - Purchase Of Goods/Services - Contractors,Tech Delivery Legacy Sp,La International,185137,"40,048.20",Information Management Services,SME,Programme Expenditure
UK Statistics Authority,Office for National Statistics,17/07/2020,Exp - Purchase Of Goods/Services - Contractors,Tech Delivery Legacy Sp,La International,185137,"10,764.90",Information Management Services,SME,Programme Expenditure
UK Statistics Authority,Office for National Statistics,17/07/2020,Exp - Purchase Of Goods/Services - Contractors,Tech Delivery Data As A Platform,La International,185137,"9,611.64",Information Management Services,SME,Programme Expenditure
UK Statistics Authority,Office for National Statistics,17/07/2020,Exp - Purchase Of Goods/Services - Contractors,Tech Delivery Data As A Platform,La International,185137,"14,353.20",Information Management Services,SME,Programme Expenditure
UK Statistics Authority,Office for National Statistics,17/07/2020,Exp - Purchase Of Goods/Services - Contractors,IT Applications,La International,185137,"36,357.81",Information Management Services,SME,Programme Expenditure
UK Statistics Authority,Office for National Statistics,17/07/2020,Exp - Purchase Of Goods/Services - Contractors,Digital Delivery,La International,185137,"13,456.26",Information Management Services,SME,Programme Expenditure
UK Statistics Authority,Office for National Statistics,17/07/2020,Exp - Purchase Of Goods/Services - Contractors,Digital Delivery,La International,185137,"26,792.40",Information Management Services,SME,Programme Expenditure
UK Statistics Authority,Office for National Statistics,17/07/2020,Exp - Purchase Of Goods/Services - Contractors,Digital Delivery,La International,185137,"15,378.48",Information Management Services,SME,Programme Expenditure
UK Statistics Authority,Office for National Statistics,17/07/2020,Exp - Purchase Of Goods/Services - Contractors,Digital Delivery,La International,185137,"3,588.30",Information Management Services,SME,Programme Expenditure
UK Statistics Authority,Office for National Statistics,17/07/2020,Exp - Purchase Of Goods/Services - Contractors,Digital Delivery,La International,185137,"21,170.98",Information Management Services,SME,Programme Expenditure
UK Statistics Authority,Office for National Statistics,17/07/2020,Stationery,Survey Processing Centre,APS Group,185140,"11,208.89",Mailing Services,Large,Programme Expenditure
UK Statistics Authority,Office for National Statistics,17/07/2020,Other Goods And Services,Social Survey Transformation Newport,APS Group,185140,"39,967.81",Mailing Services,Large,Programme Expenditure
UK Statistics Authority,Office for National Statistics,20/07/2020,Telecoms,IT Operations,Bt Global Services,185218,"49,780.39",Telephony Charges,Large,Programme Expenditure
UK Statistics Authority,Office for National Statistics,20/07/2020,End User Software And Hardware,IT Operations,CTS (Cloud Technology Solutions Ltd),185225,"-2,583.36",DST Infrastructure Preparation,Large,Programme Expenditure
UK Statistics Authority,Office for National Statistics,20/07/2020,Hosting,IT Operations,CTS (Cloud Technology Solutions Ltd),185225,"27,429.24",DST Infrastructure Preparation,Large,Programme Expenditure
UK Statistics Authority,Office for National Statistics,20/07/2020,Hosting,IT Operations,CTS (Cloud Technology Solutions Ltd),185225,"55,582.15",DST Infrastructure Preparation,Large,Programme Expenditure
UK Statistics Authority,Office for National Statistics,20/07/2020,Exp - Purchase Of Goods/Services - Contractors,Business Development,Hippo Digital Limited,185230,"80,460.00",Statistical Services,SME,Programme Expenditure
UK Statistics Authority,Office for National Statistics,21/07/2020,Exp - Purchase Of Goods/Services - Contractors,Testing,Certes Computing Ltd,185282,"23,314.08",Information Management Services,SME,Programme Expenditure
UK Statistics Authority,Office for National Statistics,21/07/2020,Exp - Purchase Of Goods/Services - Contractors,Testing,Certes Computing Ltd,185282,"10,248.00",Information Management Services,SME,Programme Expenditure
UK Statistics Authority,Office for National Statistics,21/07/2020,Exp - Purchase Of Goods/Services - Contractors,Business Architecture Transformation And Statistical Strategy,Certes Computing Ltd,185282,"11,438.76",Information Management Services,SME,Programme Expenditure
UK Statistics Authority,Office for National Statistics,21/07/2020,Exp - Purchase Of Goods/Services - Contractors,Security Advisory,Certes Computing Ltd,185282,"30,103.70",Information Management Services,SME,Programme Expenditure
UK Statistics Authority,Office for National Statistics,21/07/2020,Exp - Purchase Of Goods/Services - Contractors,Data Architecture,Certes Computing Ltd,185282,"16,558.34",Information Management Services,SME,Programme Expenditure
UK Statistics Authority,Office for National Statistics,21/07/2020,Exp - Purchase Of Goods/Services - Contractors,Data Architecture,Certes Computing Ltd,185282,"16,140.72",Information Management Services,SME,Programme Expenditure
UK Statistics Authority,Office for National Statistics,21/07/2020,Exp - Purchase Of Goods/Services - Contractors,Strategy And Architecture,Certes Computing Ltd,185282,"32,024.40",Information Management Services,SME,Programme Expenditure
UK Statistics Authority,Office for National Statistics,21/07/2020,Exp - Purchase Of Goods/Services - Contractors,Tech Delivery Legacy Sp,Certes Computing Ltd,185282,"19,183.03",Information Management Services,SME,Programme Expenditure
UK Statistics Authority,Office for National Statistics,21/07/2020,Exp - Purchase Of Goods/Services - Contractors,Tech Delivery Legacy Sp,Certes Computing Ltd,185282,"52,956.66",Information Management Services,SME,Programme Expenditure
UK Statistics Authority,Office for National Statistics,21/07/2020,Exp - Purchase Of Goods/Services - Contractors,Tech Delivery Legacy Sp,Certes Computing Ltd,185282,"20,931.72",Information Management Services,SME,Programme Expenditure
UK Statistics Authority,Office for National Statistics,21/07/2020,Exp - Purchase Of Goods/Services - Contractors,Tech Delivery Data As A Platform,Certes Computing Ltd,185282,"18,414.44",Information Management Services,SME,Programme Expenditure
UK Statistics Authority,Office for National Statistics,21/07/2020,Exp - Purchase Of Goods/Services - Contractors,Tech Delivery Data As A Platform,Certes Computing Ltd,185282,"15,372.00",Information Management Services,SME,Programme Expenditure
UK Statistics Authority,Office for National Statistics,21/07/2020,Exp - Purchase Of Goods/Services - Contractors,IT Applications,Certes Computing Ltd,185282,"14,091.12",Information Management Services,SME,Programme Expenditure
UK Statistics Authority,Office for National Statistics,21/07/2020,Exp - Purchase Of Goods/Services - Contractors,Digital Delivery,Certes Computing Ltd,185282,"7,200.00",Information Management Services,SME,Programme Expenditure
UK Statistics Authority,Office for National Statistics,21/07/2020,Exp - Purchase Of Goods/Services - Contractors,Digital Delivery,Certes Computing Ltd,185282,"16,204.79",Information Management Services,SME,Programme Expenditure
UK Statistics Authority,Office for National Statistics,21/07/2020,Exp - Purchase Of Goods/Services - Contractors,Digital Delivery,Certes Computing Ltd,185282,"37,243.74",Information Management Services,SME,Programme Expenditure
UK Statistics Authority,Office for National Statistics,21/07/2020,Exp - Purchase Of Goods/Services - Contractors,Digital Delivery,Certes Computing Ltd,185282,"14,091.12",Information Management Services,SME,Programme Expenditure
UK Statistics Authority,Office for National Statistics,21/07/2020,Exp - Purchase Of Goods/Services - Contractors,Digital Delivery,Certes Computing Ltd,185282,"13,738.85",Information Management Services,SME,Programme Expenditure
UK Statistics Authority,Office for National Statistics,21/07/2020,Exp - Purchase Of Goods/Services - Contractors,Testing,La International,185283,"13,559.16",Information Management Services,SME,Programme Expenditure
UK Statistics Authority,Office for National Statistics,21/07/2020,Exp - Purchase Of Goods/Services - Contractors,Testing,La International,185283,"13,135.74",Information Management Services,SME,Programme Expenditure
UK Statistics Authority,Office for National Statistics,21/07/2020,Exp - Purchase Of Goods/Services - Contractors,Data Architecture,La International,185283,"3,524.22",Information Management Services,SME,Programme Expenditure
UK Statistics Authority,Office for National Statistics,21/07/2020,Exp - Purchase Of Goods/Services - Contractors,Data Architecture,La International,185283,"3,524.22",Information Management Services,SME,Programme Expenditure
UK Statistics Authority,Office for National Statistics,21/07/2020,Exp - Purchase Of Goods/Services - Contractors,Data Architecture,La International,185283,"3,588.30",Information Management Services,SME,Programme Expenditure
UK Statistics Authority,Office for National Statistics,21/07/2020,Exp - Purchase Of Goods/Services - Contractors,Tech Delivery SRS,La International,185283,"2,870.64",Information Management Services,SME,Programme Expenditure
UK Statistics Authority,Office for National Statistics,21/07/2020,Exp - Purchase Of Goods/Services - Contractors,IT Applications,La International,185283,"17,890.62",Information Management Services,SME,Programme Expenditure
UK Statistics Authority,Office for National Statistics,21/07/2020,Exp - Purchase Of Goods/Services - Contractors,Digital Delivery,La International,185283,"14,353.20",Information Management Services,SME,Programme Expenditure
UK Statistics Authority,Office for National Statistics,21/07/2020,EXP - PURCHASE OF GOODS/SERVICES -  NON IT CONTRACTUAL PAYMENTS,Data Collection Service,HH Associates Ltd,185287,"41,672.16",Print and Post Services,SME,Programme Expenditure
UK Statistics Authority,Office for National Statistics,21/07/2020,EXP - PURCHASE OF GOODS/SERVICES -  NON IT CONTRACTUAL PAYMENTS,Covid Infection Survey,HH Associates Ltd,185287,"58,360.79",Print and Post Services,SME,Programme Expenditure
UK Statistics Authority,Office for National Statistics,21/07/2020,Other Goods And Services,Beyond 2021 Research And Design,The Sensible Code Company,185290,"87,840.00",Statistical Services,SME,Programme Expenditure
UK Statistics Authority,Office for National Statistics,22/07/2020,Marketing & Media,Social Surveys Division,APS Group,185306,"7,241.65",Mailing Services,Large,Programme Expenditure
UK Statistics Authority,Office for National Statistics,22/07/2020,Marketing & Media,Social Surveys Division,APS Group,185306,"17,941.62",Mailing Services,Large,Programme Expenditure
UK Statistics Authority,Office for National Statistics,22/07/2020,Stationery,Census CCS Data Collection,Gresham Office Furniture Limited,185308,"2,580.00",Office Furniture,SME,Programme Expenditure
UK Statistics Authority,Office for National Statistics,22/07/2020,Fixtures & Fittings At Cost - Additions,Property Services,Gresham Office Furniture Limited,185308,"60,000.00",Office Furniture,SME,Programme Expenditure
UK Statistics Authority,Office for National Statistics,22/07/2020,Survey Incentive Vouchers,Property Services,Gresham Office Furniture Limited,185308,"23,433.60",Office Furniture,SME,Programme Expenditure
UK Statistics Authority,Office for National Statistics,24/07/2020,Exp - Purchase Of Goods/Services - Contractors,Security Advisory,Certes Computing Ltd,185459,"38,430.24",Information Management Services,SME,Programme Expenditure
UK Statistics Authority,Office for National Statistics,24/07/2020,Exp - Purchase Of Goods/Services - Contractors,Tech Delivery Legacy Sp,Certes Computing Ltd,185459,"1,281.00",Information Management Services,SME,Programme Expenditure
UK Statistics Authority,Office for National Statistics,24/07/2020,Exp - Purchase Of Goods/Services - Contractors,Tech Delivery Legacy Sp,Certes Computing Ltd,185459,"6,533.16",Information Management Services,SME,Programme Expenditure
UK Statistics Authority,Office for National Statistics,24/07/2020,Exp - Purchase Of Goods/Services - Contractors,Tech Delivery Data As A Platform,Certes Computing Ltd,185459,"8,006.28",Information Management Services,SME,Programme Expenditure
UK Statistics Authority,Office for National Statistics,24/07/2020,Exp - Purchase Of Goods/Services - Contractors,Sustainability And Inequalities,La International,185460,"5,051.04",Information Management Services,SME,Programme Expenditure
UK Statistics Authority,Office for National Statistics,24/07/2020,Exp - Purchase Of Goods/Services - Contractors,Tech Delivery SRS,La International,185460,"2,870.64",Information Management Services,SME,Programme Expenditure
UK Statistics Authority,Office for National Statistics,24/07/2020,Exp - Short-Term Contract & Agency Staff - Full Cost,Tech Delivery Next Gen IT And Infrastructure,La International,185460,"2,458.03",Information Management Services,SME,Programme Expenditure
UK Statistics Authority,Office for National Statistics,24/07/2020,Exp - Purchase Of Goods/Services - Contractors,IT Applications,La International,185460,"10,380.55",Information Management Services,SME,Programme Expenditure
UK Statistics Authority,Office for National Statistics,24/07/2020,Exp - Purchase Of Goods/Services - Contractors,Digital Delivery,La International,185460,"8,970.84",Information Management Services,SME,Programme Expenditure
UK Statistics Authority,Office for National Statistics,24/07/2020,Exp - Purchase Of Goods/Services - Contractors,Digital Delivery,La International,185460,"13,589.76",Information Management Services,SME,Programme Expenditure
UK Statistics Authority,Office for National Statistics,24/07/2020,EXP - PURCHASE OF GOODS/SERVICES -  NON IT CONTRACTUAL PAYMENTS,Data Collection Service,Serco Ltd,185466,"32,140.57",Census Contact Centre,Large,Programme Expenditure
UK Statistics Authority,Office for National Statistics,24/07/2020,End User Software And Hardware,IT Operations,CTS (Cloud Technology Solutions Ltd),185468,"314,385.84",DST Infrastructure Preparation,Large,Programme Expenditure
UK Statistics Authority,Office for National Statistics,24/07/2020,Other Goods And Services,Stakeholder Engagement And Comms,M&C Saatchi UK Ltd,185473,"26,054.12",Marketing Services,Large,Programme Expenditure
UK Statistics Authority,Office for National Statistics,24/07/2020,Telecoms,IT Operations,Freedom Communications (UK) Ltd,185478,"53,883.91",Information Management Services,Large,Programme Expenditure
UK Statistics Authority,Office for National Statistics,28/07/2020,Exp - Purchase Of Goods/Services - Contractors,Testing,La International,185604,"13,559.16",Information Management Services,SME,Programme Expenditure
UK Statistics Authority,Office for National Statistics,28/07/2020,Exp - Purchase Of Goods/Services - Contractors,Testing,La International,185604,"11,181.38",Information Management Services,SME,Programme Expenditure
UK Statistics Authority,Office for National Statistics,28/07/2020,Exp - Purchase Of Goods/Services - Contractors,Data Architecture,La International,185604,"11,796.54",Information Management Services,SME,Programme Expenditure
UK Statistics Authority,Office for National Statistics,28/07/2020,Exp - Purchase Of Goods/Services - Contractors,Data Architecture,La International,185604,"3,524.22",Information Management Services,SME,Programme Expenditure
UK Statistics Authority,Office for National Statistics,28/07/2020,Exp - Purchase Of Goods/Services - Contractors,Data Architecture,La International,185604,"10,636.74",Information Management Services,SME,Programme Expenditure
UK Statistics Authority,Office for National Statistics,28/07/2020,Exp - Purchase Of Goods/Services - Contractors,Data Architecture,La International,185604,"1,435.32",Information Management Services,SME,Programme Expenditure
UK Statistics Authority,Office for National Statistics,29/07/2020,Capital Major Works >25K,Property Services,Paramount Office Interiors Ltd,185620,"179,426.18",Buildings Maintenance,SME,Programme Expenditure
UK Statistics Authority,Office for National Statistics,29/07/2020,Capital Major Works >25K,Property Newport,Paramount Office Interiors Ltd,185620,"105,678.90",Buildings Maintenance,SME,Programme Expenditure
UK Statistics Authority,Office for National Statistics,29/07/2020,Major Works Over 25K,Property Newport,Paramount Office Interiors Ltd,185620,857.16,Buildings Maintenance,SME,Programme Expenditure
UK Statistics Authority,Office for National Statistics,29/07/2020,Major Works Over 25K,Property Newport,Paramount Office Interiors Ltd,185620,"196,260.83",Buildings Maintenance,SME,Programme Expenditure
UK Statistics Authority,Office for National Statistics,29/07/2020,Surveys,Prices Division,Kantar UK Ltd,185621,"207,556.94",Statistical Services,Large,Programme Expenditure
UK Statistics Authority,Office for National Statistics,29/07/2020,Surveys,Prices Division,Kantar UK Ltd,185621,"8,299.70",Statistical Services,Large,Programme Expenditure
UK Statistics Authority,Office for National Statistics,03/07/2020,Exp - Purchase Of Goods/Services - Incentive Payments,Covid Infection Survey,Sodexo Motivation Solutions U.K. ltd,30002107,"418,252.76",Survey Response Incentive Vouchers,Large,Programme Expenditure
UK Statistics Authority,Office for National Statistics,13/07/2020,Exp - Purchase Of Goods/Services - Incentive Payments,Covid Infection Survey,Sodexo Motivation Solutions U.K. ltd,30002121,"553,903.64",Survey Response Incentive Vouchers,Large,Programme Expenditure
UK Statistics Authority,Office for National Statistics,20/07/2020,Exp - Purchase Of Goods/Services - Incentive Payments,Covid Infection Survey,Sodexo Motivation Solutions U.K. ltd,30002132,"447,827.05",Survey Response Incentive Vouchers,Large,Programme Expenditure
UK Statistics Authority,Office for National Statistics,27/07/2020,Exp - Purchase Of Goods/Services - Incentive Payments,Covid Infection Survey,Sodexo Motivation Solutions U.K. ltd,30002138,"504,980.82",Survey Response Incentive Vouchers,Large,Programme Expenditure
,,,,,,Report Total,"12,566,406.33",,,
